[Event "Early-Titled-Tuesday-Blitz-June-18-2024"]
[Site "Chess.com"]
[Date "2024.06.18"]
[Round "2"]
[White "AttilaTurzo"]
[Black "lamomiajunior"]
[Result "0-1"]
[WhiteElo "2424"]
[BlackElo "2738"]
[TimeControl "180+1"]
[EndTime "8:18:22 PDT"]
[Termination "lamomiajunior won on time"]

1. d4 {[%clk 0:02:59.9]} 1... Nf6 {[%clk 0:03:00]} 2. c4 {[%clk 0:02:58.9]} 2...
g6 {[%clk 0:02:58.9]} 3. Nc3 {[%clk 0:02:58.7]} 3... Bg7 {[%clk 0:02:59.5]} 4.
e4 {[%clk 0:02:58.4]} 4... d6 {[%clk 0:03:00]} 5. Nf3 {[%clk 0:02:58.7]} 5...
O-O {[%clk 0:03:00.6]} 6. Be2 {[%clk 0:02:59.1]} 6... Nc6 {[%clk 0:03:00.9]} 7.
d5 {[%clk 0:02:57.7]} 7... Nb8 {[%clk 0:02:56.2]} 8. O-O {[%clk 0:02:55]} 8...
c5 {[%clk 0:02:56.2]} 9. h3 {[%clk 0:02:50.3]} 9... e5 {[%clk 0:02:54.3]} 10.
dxe6 {[%clk 0:02:27.5]} 10... Bxe6 {[%clk 0:02:37.2]} 11. Bf4 {[%clk 0:02:26.9]}
11... Ne8 {[%clk 0:02:32.9]} 12. Qd2 {[%clk 0:02:14.3]} 12... Nc6 {[%clk
0:02:29.7]} 13. Rad1 {[%clk 0:02:13.3]} 13... a6 {[%clk 0:02:23.7]} 14. Be3
{[%clk 0:01:47.9]} 14... Qa5 {[%clk 0:01:50.6]} 15. Nd5 {[%clk 0:01:36.2]} 15...
Qxd2 {[%clk 0:01:26.9]} 16. Rxd2 {[%clk 0:01:36]} 16... Bxd5 {[%clk 0:01:27.5]}
17. exd5 {[%clk 0:01:30.5]} 17... Ne5 {[%clk 0:01:25.3]} 18. Nxe5 {[%clk
0:01:21.1]} 18... Bxe5 {[%clk 0:01:26.2]} 19. a4 {[%clk 0:01:14.6]} 19... Nc7
{[%clk 0:01:21.8]} 20. f4 {[%clk 0:00:58.9]} 20... Bg7 {[%clk 0:01:20.6]} 21. a5
{[%clk 0:00:58.4]} 21... Rfe8 {[%clk 0:01:18.6]} 22. Bf2 {[%clk 0:00:37.8]}
22... Rab8 {[%clk 0:01:18.6]} 23. Bd3 {[%clk 0:00:35.8]} 23... b5 {[%clk
0:01:14]} 24. axb6 {[%clk 0:00:36.7]} 24... Rxb6 {[%clk 0:01:14.3]} 25. f5
{[%clk 0:00:19.6]} 25... Be5 {[%clk 0:01:06.5]} 26. fxg6 {[%clk 0:00:18.3]}
26... hxg6 {[%clk 0:01:07.4]} 27. Re1 {[%clk 0:00:15]} 27... Rxb2 {[%clk
0:00:24.2]} 28. Rxb2 {[%clk 0:00:09.3]} 28... Bxb2 {[%clk 0:00:25.1]} 29. Rb1
{[%clk 0:00:08.7]} 29... Be5 {[%clk 0:00:21.1]} 30. Rb7 {[%clk 0:00:07.8]} 30...
Rc8 {[%clk 0:00:21.7]} 31. Kf1 {[%clk 0:00:06.6]} 31... Kf8 {[%clk 0:00:21.3]}
32. Bc2 {[%clk 0:00:06.5]} 32... Kg7 {[%clk 0:00:16.7]} 33. Ba4 {[%clk 0:00:06]}
33... Ne8 {[%clk 0:00:12.9]} 34. Bxe8 {[%clk 0:00:02.9]} 34... Rxe8 {[%clk
0:00:13.1]} 35. Ra7 {[%clk 0:00:03.4]} 35... Rb8 {[%clk 0:00:11.9]} 36. Rxa6
{[%clk 0:00:02.8]} 36... Rb4 {[%clk 0:00:12.1]} 0-1

[Event "Early-Titled-Tuesday-Blitz-June-18-2024"]
[Site "Chess.com"]
[Date "2024.06.18"]
[Round "2"]
[White "Muracle"]
[Black "RobertoJBM"]
[Result "1-0"]
[WhiteElo "2584"]
[BlackElo "2808"]
[TimeControl "180+1"]
[EndTime "8:18:23 PDT"]
[Termination "Muracle won by resignation"]

1. d4 {[%clk 0:03:00.9]} 1... d5 {[%clk 0:02:59.7]} 2. Nf3 {[%clk 0:03:00.7]}
2... Nf6 {[%clk 0:02:59]} 3. g3 {[%clk 0:03:00.3]} 3... c6 {[%clk 0:02:58.6]} 4.
Bg2 {[%clk 0:02:59.6]} 4... Bf5 {[%clk 0:02:59.1]} 5. O-O {[%clk 0:02:59.1]}
5... e6 {[%clk 0:02:58.8]} 6. c4 {[%clk 0:02:57.1]} 6... Nbd7 {[%clk 0:02:58]}
7. Qb3 {[%clk 0:02:56.3]} 7... Qb6 {[%clk 0:02:57.8]} 8. c5 {[%clk 0:02:55.8]}
8... Qxb3 {[%clk 0:02:57.6]} 9. axb3 {[%clk 0:02:56.7]} 9... Bxb1 {[%clk
0:02:56.6]} 10. Rxb1 {[%clk 0:02:56.1]} 10... a6 {[%clk 0:02:56.8]} 11. b4
{[%clk 0:02:55.8]} 11... Be7 {[%clk 0:02:56.6]} 12. Bf4 {[%clk 0:02:52.8]} 12...
O-O {[%clk 0:02:55]} 13. Nd2 {[%clk 0:02:46.9]} 13... Rfc8 {[%clk 0:02:47.4]}
14. Nb3 {[%clk 0:02:37.4]} 14... Bd8 {[%clk 0:02:46.9]} 15. f3 {[%clk
0:02:25.7]} 15... Bc7 {[%clk 0:02:46.2]} 16. Bxc7 {[%clk 0:02:19]} 16... Rxc7
{[%clk 0:02:46.1]} 17. e4 {[%clk 0:02:19.9]} 17... e5 {[%clk 0:02:27.5]} 18.
dxe5 {[%clk 0:02:14.3]} 18... Nxe5 {[%clk 0:02:28.4]} 19. f4 {[%clk 0:02:11.4]}
19... Nd3 {[%clk 0:02:28.2]} 20. e5 {[%clk 0:01:08.6]} 20... Nd7 {[%clk
0:02:26.9]} 21. Rfd1 {[%clk 0:00:55.4]} 21... Nxb4 {[%clk 0:02:26.6]} 22. Rd4
{[%clk 0:00:55.8]} 22... a5 {[%clk 0:02:26.7]} 23. Bh3 {[%clk 0:00:52.1]} 23...
a4 {[%clk 0:01:30.4]} 24. Ra1 {[%clk 0:00:38.7]} 24... Na6 {[%clk 0:01:12.9]}
25. Rdxa4 {[%clk 0:00:23.6]} 25... Re8 {[%clk 0:01:11.3]} 26. Rc1 {[%clk
0:00:20.6]} 26... g6 {[%clk 0:01:08.5]} 27. Kf2 {[%clk 0:00:19.1]} 27... f6
{[%clk 0:01:08.1]} 28. Bxd7 {[%clk 0:00:15.5]} 28... Rxd7 {[%clk 0:01:09]} 29.
exf6 {[%clk 0:00:15.9]} 29... Kf7 {[%clk 0:01:08.7]} 30. Nd4 {[%clk 0:00:14.6]}
30... Kxf6 {[%clk 0:01:09]} 31. Nxc6 {[%clk 0:00:14.8]} 31... Rc7 {[%clk
0:01:00.3]} 32. Nb4 {[%clk 0:00:15.3]} 32... Nxb4 {[%clk 0:00:56.9]} 33. Rxb4
{[%clk 0:00:15.4]} 33... Kf5 {[%clk 0:00:57.2]} 34. Rd4 {[%clk 0:00:14.9]} 34...
Rd7 {[%clk 0:00:53.7]} 35. b4 {[%clk 0:00:15.2]} 35... Re4 {[%clk 0:00:53.1]}
36. Rcd1 {[%clk 0:00:15.1]} 36... Rxd4 {[%clk 0:00:52.4]} 37. Rxd4 {[%clk
0:00:16]} 37... Ke6 {[%clk 0:00:52.8]} 38. g4 {[%clk 0:00:15.6]} 38... Rd8
{[%clk 0:00:51.6]} 39. Kf3 {[%clk 0:00:15.8]} 39... Ra8 {[%clk 0:00:51.6]} 40.
Rd3 {[%clk 0:00:15.7]} 40... Ra4 {[%clk 0:00:51.4]} 41. Rb3 {[%clk 0:00:16.1]}
41... Kd7 {[%clk 0:00:51.8]} 42. Ke3 {[%clk 0:00:16.3]} 42... Kc6 {[%clk
0:00:51.7]} 43. Kd4 {[%clk 0:00:17]} 43... Ra2 {[%clk 0:00:51.4]} 44. b5+ {[%clk
0:00:17.1]} 44... Kc7 {[%clk 0:00:51.1]} 45. Kxd5 {[%clk 0:00:16.3]} 45... Rxh2
{[%clk 0:00:51.1]} 46. f5 {[%clk 0:00:16.9]} 46... Rg2 {[%clk 0:00:45]} 47. f6
{[%clk 0:00:14.4]} 47... Rf2 {[%clk 0:00:44.4]} 48. g5 {[%clk 0:00:14.1]} 48...
Rf5+ {[%clk 0:00:44.2]} 49. Ke6 {[%clk 0:00:14.2]} 49... Rxc5 {[%clk 0:00:42.8]}
50. Rf3 {[%clk 0:00:12]} 1-0

[Event "Early-Titled-Tuesday-Blitz-June-18-2024"]
[Site "Chess.com"]
[Date "2024.06.18"]
[Round "2"]
[White "Revan_2002"]
[Black "DinaBelenkaya"]
[Result "1-0"]
[WhiteElo "2721"]
[BlackElo "2326"]
[TimeControl "180+1"]
[EndTime "8:18:24 PDT"]
[Termination "Revan_2002 won on time"]

1. Nf3 {[%clk 0:02:51.7]} 1... d5 {[%clk 0:02:56]} 2. g3 {[%clk 0:02:51.9]} 2...
Nf6 {[%clk 0:02:54.9]} 3. Bg2 {[%clk 0:02:52.5]} 3... c6 {[%clk 0:02:53.7]} 4.
O-O {[%clk 0:02:52.5]} 4... g6 {[%clk 0:02:52.4]} 5. d3 {[%clk 0:02:52.4]} 5...
Bg7 {[%clk 0:02:52.7]} 6. Nbd2 {[%clk 0:02:53]} 6... Nbd7 {[%clk 0:02:49.9]} 7.
e4 {[%clk 0:02:52.9]} 7... O-O {[%clk 0:02:47.3]} 8. Re1 {[%clk 0:02:53.4]} 8...
e6 {[%clk 0:02:24.5]} 9. e5 {[%clk 0:02:53.2]} 9... Ne8 {[%clk 0:02:24]} 10. d4
{[%clk 0:02:53.2]} 10... c5 {[%clk 0:02:24.1]} 11. c3 {[%clk 0:02:52.6]} 11...
Nc7 {[%clk 0:02:22.7]} 12. Nf1 {[%clk 0:02:51.6]} 12... b6 {[%clk 0:02:20]} 13.
Bg5 {[%clk 0:02:50.6]} 13... Qe8 {[%clk 0:02:18.2]} 14. Qd2 {[%clk 0:02:49.3]}
14... Ba6 {[%clk 0:02:04.9]} 15. Bh6 {[%clk 0:02:48.7]} 15... Qe7 {[%clk
0:02:01.3]} 16. Bxg7 {[%clk 0:02:45.6]} 16... Kxg7 {[%clk 0:02:02.2]} 17. Ne3
{[%clk 0:02:46]} 17... h6 {[%clk 0:01:44.7]} 18. Ng4 {[%clk 0:02:35.7]} 18...
Rh8 {[%clk 0:01:44.3]} 19. h4 {[%clk 0:02:34.5]} 19... b5 {[%clk 0:01:33.3]} 20.
a3 {[%clk 0:02:30.1]} 20... Rac8 {[%clk 0:01:25.9]} 21. Rac1 {[%clk 0:02:25.3]}
21... Bb7 {[%clk 0:01:25.5]} 22. Qf4 {[%clk 0:02:19.1]} 22... Na8 {[%clk
0:01:19.9]} 23. Bf1 {[%clk 0:02:12]} 23... a6 {[%clk 0:01:12.7]} 24. Bd3 {[%clk
0:02:07.5]} 24... Nab6 {[%clk 0:00:58.6]} 25. Re2 {[%clk 0:02:07.5]} 25... cxd4
{[%clk 0:00:57.7]} 26. Nxd4 {[%clk 0:02:06.9]} 26... Nc4 {[%clk 0:00:54.5]} 27.
Rce1 {[%clk 0:02:06.1]} 27... Rcg8 {[%clk 0:00:38.9]} 28. Bb1 {[%clk 0:02:04.8]}
28... Kf8 {[%clk 0:00:36.8]} 29. Nf6 {[%clk 0:02:02.6]} 29... Nxf6 {[%clk
0:00:35.5]} 30. exf6 {[%clk 0:02:03.5]} 30... Qd6 {[%clk 0:00:27.1]} 31. Qg4
{[%clk 0:01:13.5]} 31... Bc8 {[%clk 0:00:19.8]} 32. Nf3 {[%clk 0:01:03.4]} 32...
Ke8 {[%clk 0:00:17.4]} 33. Qd4 {[%clk 0:00:56.1]} 33... Kd8 {[%clk 0:00:16.3]}
34. Bd3 {[%clk 0:00:52.1]} 34... Kc7 {[%clk 0:00:12.5]} 35. b3 {[%clk
0:00:48.9]} 35... Nb6 {[%clk 0:00:12.2]} 36. Ne5 {[%clk 0:00:49.6]} 36... Rh7
{[%clk 0:00:08.2]} 37. a4 {[%clk 0:00:49.5]} 37... Bd7 {[%clk 0:00:03.4]} 38. a5
{[%clk 0:00:34]} 38... Nc8 {[%clk 0:00:02.8]} 39. h5 {[%clk 0:00:34.7]} 39...
Rhh8 {[%clk 0:00:02]} 40. Nxf7 {[%clk 0:00:33.9]} 40... Qf8 {[%clk 0:00:02.1]}
41. Nxh8 {[%clk 0:00:31]} 41... Rxh8 {[%clk 0:00:02.3]} 42. hxg6 {[%clk
0:00:31.6]} 42... Qd6 {[%clk 0:00:02.2]} 43. f7 {[%clk 0:00:29.4]} 1-0

[Event "Early-Titled-Tuesday-Blitz-June-18-2024"]
[Site "Chess.com"]
[Date "2024.06.18"]
[Round "2"]
[White "SaraBlackPanther"]
[Black "Austen48"]
[Result "1-0"]
[WhiteElo "2713"]
[BlackElo "2287"]
[TimeControl "180+1"]
[EndTime "8:18:25 PDT"]
[Termination "SaraBlackPanther won on time"]

1. d4 {[%clk 0:03:00.9]} 1... Nf6 {[%clk 0:02:59.6]} 2. c4 {[%clk 0:02:59.8]}
2... e6 {[%clk 0:02:59.5]} 3. Nf3 {[%clk 0:02:58.4]} 3... Bb4+ {[%clk
0:02:58.3]} 4. Nbd2 {[%clk 0:02:58.1]} 4... d5 {[%clk 0:02:49.8]} 5. Qa4+ {[%clk
0:02:56.8]} 5... Nc6 {[%clk 0:02:48.9]} 6. e3 {[%clk 0:02:57.3]} 6... O-O {[%clk
0:02:46]} 7. Qc2 {[%clk 0:02:55.6]} 7... Re8 {[%clk 0:02:31.5]} 8. a3 {[%clk
0:02:53.6]} 8... Bf8 {[%clk 0:02:29.8]} 9. Bd3 {[%clk 0:02:53.1]} 9... e5 {[%clk
0:02:17.2]} 10. dxe5 {[%clk 0:02:52.8]} 10... Nxe5 {[%clk 0:02:16.5]} 11. Nxe5
{[%clk 0:02:53.4]} 11... Rxe5 {[%clk 0:02:16]} 12. Nf3 {[%clk 0:02:54.1]} 12...
Re8 {[%clk 0:02:14.4]} 13. Bd2 {[%clk 0:02:49.8]} 13... dxc4 {[%clk 0:02:07.5]}
14. Bxc4 {[%clk 0:02:47.3]} 14... Be6 {[%clk 0:02:06.6]} 15. Bd3 {[%clk
0:02:36.6]} 15... c6 {[%clk 0:01:52.8]} 16. Bc3 {[%clk 0:02:35.1]} 16... h6
{[%clk 0:01:47.3]} 17. O-O-O {[%clk 0:02:32.7]} 17... Nd5 {[%clk 0:01:40.5]} 18.
Bh7+ {[%clk 0:02:24.3]} 18... Kh8 {[%clk 0:01:39.3]} 19. e4 {[%clk 0:02:22.7]}
19... Nxc3 {[%clk 0:01:10.5]} 20. Rxd8 {[%clk 0:02:23.6]} 20... Raxd8 {[%clk
0:01:10.1]} 21. Qxc3 {[%clk 0:02:17.4]} 21... Kxh7 {[%clk 0:01:09.8]} 22. Nd4
{[%clk 0:02:06.7]} 22... g6 {[%clk 0:01:00.2]} 23. Nxe6 {[%clk 0:02:05.8]} 23...
Rxe6 {[%clk 0:01:00.3]} 24. e5 {[%clk 0:01:39.4]} 24... Rd5 {[%clk 0:00:55.8]}
25. Qf3 {[%clk 0:01:34.3]} 25... Re7 {[%clk 0:00:44.1]} 26. Re1 {[%clk
0:01:28.8]} 26... Bg7 {[%clk 0:00:42.9]} 27. Qb3 {[%clk 0:00:58.9]} 27... Bxe5
{[%clk 0:00:33.5]} 28. Kb1 {[%clk 0:00:51.6]} 28... Red7 {[%clk 0:00:32.1]} 29.
Re2 {[%clk 0:00:42.3]} 29... Bg7 {[%clk 0:00:29.7]} 30. Qf3 {[%clk 0:00:28.2]}
30... f5 {[%clk 0:00:25.3]} 31. g4 {[%clk 0:00:26.3]} 31... fxg4 {[%clk
0:00:20.2]} 32. Qxg4 {[%clk 0:00:27.2]} 32... Rd2 {[%clk 0:00:16.3]} 33. Re6
{[%clk 0:00:17.7]} 33... g5 {[%clk 0:00:06.4]} 34. Qf5+ {[%clk 0:00:15.5]} 34...
Kg8 {[%clk 0:00:01.4]} 35. Re8+ {[%clk 0:00:16]} 1-0

[Event "Early-Titled-Tuesday-Blitz-June-18-2024"]
[Site "Chess.com"]
[Date "2024.06.18"]
[Round "2"]
[White "MightyGMpretender"]
[Black "Crazy_girl99"]
[Result "0-1"]
[WhiteElo "2843"]
[BlackElo "2613"]
[TimeControl "180+1"]
[EndTime "8:18:26 PDT"]
[Termination "Crazy_girl99 won on time"]

1. e4 {[%clk 0:02:45.1]} 1... e5 {[%clk 0:02:45.7]} 2. Nf3 {[%clk 0:02:44.9]}
2... Nc6 {[%clk 0:02:44.7]} 3. g3 {[%clk 0:02:44.7]} 3... Nf6 {[%clk 0:02:40.7]}
4. d3 {[%clk 0:02:44.7]} 4... Bc5 {[%clk 0:02:40.2]} 5. Bg2 {[%clk 0:02:44.3]}
5... d6 {[%clk 0:02:40.5]} 6. O-O {[%clk 0:02:44.4]} 6... O-O {[%clk 0:02:40.4]}
7. h3 {[%clk 0:02:42.5]} 7... h6 {[%clk 0:02:40]} 8. c3 {[%clk 0:02:42.3]} 8...
Bb6 {[%clk 0:02:40]} 9. Na3 {[%clk 0:02:41.6]} 9... Be6 {[%clk 0:02:39.2]} 10.
Re1 {[%clk 0:02:39]} 10... Re8 {[%clk 0:02:38.3]} 11. Nc4 {[%clk 0:02:37.4]}
11... Bxc4 {[%clk 0:02:31.6]} 12. dxc4 {[%clk 0:02:37.2]} 12... a5 {[%clk
0:02:31.8]} 13. Nd2 {[%clk 0:02:31.8]} 13... Nb8 {[%clk 0:02:23.8]} 14. Nf1
{[%clk 0:02:31.5]} 14... Nbd7 {[%clk 0:02:24]} 15. Ne3 {[%clk 0:02:31.5]} 15...
Nc5 {[%clk 0:02:17.2]} 16. Nf5 {[%clk 0:02:30]} 16... Ne6 {[%clk 0:02:16.8]} 17.
Qf3 {[%clk 0:02:16.2]} 17... Ng5 {[%clk 0:02:14.4]} 18. Qe2 {[%clk 0:02:13.4]}
18... a4 {[%clk 0:02:07]} 19. h4 {[%clk 0:02:13]} 19... Ne6 {[%clk 0:02:07.1]}
20. Bh3 {[%clk 0:02:07.4]} 20... c6 {[%clk 0:01:55.6]} 21. Kg2 {[%clk
0:02:04.9]} 21... d5 {[%clk 0:01:55.2]} 22. exd5 {[%clk 0:02:01.4]} 22... cxd5
{[%clk 0:01:55.4]} 23. Bd2 {[%clk 0:01:47.1]} 23... dxc4 {[%clk 0:01:54.2]} 24.
Rad1 {[%clk 0:01:44.4]} 24... Qd3 {[%clk 0:01:48.3]} 25. Qxd3 {[%clk 0:01:32.7]}
25... cxd3 {[%clk 0:01:48.2]} 26. Rxe5 {[%clk 0:01:33.3]} 26... Nc7 {[%clk
0:01:22.3]} 27. Rxe8+ {[%clk 0:01:25.3]} 27... Rxe8 {[%clk 0:01:23.2]} 28. Nd6
{[%clk 0:01:04.9]} 28... Re2 {[%clk 0:01:19.5]} 29. Bf5 {[%clk 0:01:04.5]} 29...
Rxf2+ {[%clk 0:01:12.7]} 30. Kh3 {[%clk 0:01:04.7]} 30... Bc5 {[%clk 0:01:06.9]}
31. Nxb7 {[%clk 0:01:04.5]} 31... Rxf5 {[%clk 0:01:06]} 32. Bf4 {[%clk
0:01:02.4]} 32... Ne6 {[%clk 0:01:02.3]} 33. Rxd3 {[%clk 0:00:57.7]} 33... Nxf4+
{[%clk 0:00:58.8]} 34. gxf4 {[%clk 0:00:57.7]} 34... Bf8 {[%clk 0:00:59.3]} 35.
c4 {[%clk 0:00:44.6]} 35... Rxf4 {[%clk 0:00:50.1]} 36. b3 {[%clk 0:00:43.1]}
36... axb3 {[%clk 0:00:49.4]} 37. axb3 {[%clk 0:00:42.9]} 37... g5 {[%clk
0:00:49.7]} 38. hxg5 {[%clk 0:00:42.6]} 38... hxg5 {[%clk 0:00:50.6]} 39. c5
{[%clk 0:00:39.1]} 39... Rh4+ {[%clk 0:00:48]} 40. Kg2 {[%clk 0:00:38.7]} 40...
Nh5 {[%clk 0:00:39.8]} 41. Rd8 {[%clk 0:00:36.4]} 41... Nf4+ {[%clk 0:00:37.3]}
42. Kg1 {[%clk 0:00:36]} 42... Ne6 {[%clk 0:00:37.1]} 43. Rc8 {[%clk 0:00:35.1]}
43... Rb4 {[%clk 0:00:30.5]} 44. Nd6 {[%clk 0:00:28.5]} 44... Rxb3 {[%clk
0:00:22.4]} 0-1

[Event "Early-Titled-Tuesday-Blitz-June-18-2024"]
[Site "Chess.com"]
[Date "2024.06.18"]
[Round "2"]
[White "Eliwood44"]
[Black "IMRosen"]
[Result "0-1"]
[WhiteElo "2464"]
[BlackElo "2762"]
[TimeControl "180+1"]
[EndTime "8:18:27 PDT"]
[Termination "IMRosen won by checkmate"]

1. d4 {[%clk 0:02:54.7]} 1... d5 {[%clk 0:03:00.1]} 2. c4 {[%clk 0:02:54]} 2...
e6 {[%clk 0:03:00.1]} 3. Nc3 {[%clk 0:02:53.8]} 3... Nf6 {[%clk 0:03:00.7]} 4.
cxd5 {[%clk 0:02:54.1]} 4... exd5 {[%clk 0:03:00.6]} 5. Bg5 {[%clk 0:02:54.8]}
5... c6 {[%clk 0:03:01]} 6. e3 {[%clk 0:02:55.1]} 6... Bd6 {[%clk 0:03:01.4]} 7.
Bh4 {[%clk 0:02:52.7]} 7... O-O {[%clk 0:02:58.7]} 8. Bd3 {[%clk 0:02:50.6]}
8... Re8 {[%clk 0:02:58.7]} 9. Nge2 {[%clk 0:02:50.6]} 9... a5 {[%clk
0:02:57.7]} 10. a3 {[%clk 0:02:50.1]} 10... Na6 {[%clk 0:02:57.3]} 11. Rc1
{[%clk 0:02:49.2]} 11... Nc7 {[%clk 0:02:57]} 12. Bb1 {[%clk 0:02:46.2]} 12...
Ne6 {[%clk 0:02:52.3]} 13. Bg3 {[%clk 0:02:40.2]} 13... Bxg3 {[%clk 0:02:51.6]}
14. Nxg3 {[%clk 0:02:40.1]} 14... g6 {[%clk 0:02:40.2]} 15. O-O {[%clk
0:02:08.5]} 15... h5 {[%clk 0:02:40.2]} 16. Re1 {[%clk 0:02:03.1]} 16... h4
{[%clk 0:02:40.2]} 17. Nf1 {[%clk 0:02:02.8]} 17... h3 {[%clk 0:02:27.9]} 18.
gxh3 {[%clk 0:01:50.2]} 18... Ng5 {[%clk 0:02:18]} 19. f4 {[%clk 0:01:22.5]}
19... Nxh3+ {[%clk 0:02:11.2]} 20. Kg2 {[%clk 0:01:19.7]} 20... Bg4 {[%clk
0:02:04.8]} 21. Qd2 {[%clk 0:01:14.3]} 21... Kg7 {[%clk 0:01:54.8]} 22. Ng3
{[%clk 0:01:07.9]} 22... Qd6 {[%clk 0:01:31.6]} 23. Bc2 {[%clk 0:00:49.7]} 23...
Rh8 {[%clk 0:01:31]} 24. Bd1 {[%clk 0:00:43.1]} 24... Rae8 {[%clk 0:01:15]} 25.
Rf1 {[%clk 0:00:37.2]} 25... b5 {[%clk 0:01:09.2]} 26. Bf3 {[%clk 0:00:32.8]}
26... Qd7 {[%clk 0:00:48.9]} 27. Nce2 {[%clk 0:00:25.7]} 27... Bxf3+ {[%clk
0:00:39.8]} 28. Rxf3 {[%clk 0:00:25.5]} 28... Ng4 {[%clk 0:00:40.1]} 29. Rh1
{[%clk 0:00:22.8]} 29... Qe7 {[%clk 0:00:29.6]} 30. Nf1 {[%clk 0:00:18.6]} 30...
Qh4 {[%clk 0:00:25]} 31. Neg3 {[%clk 0:00:15.6]} 31... f5 {[%clk 0:00:15.2]} 32.
Qc3 {[%clk 0:00:13.9]} 32... Re6 {[%clk 0:00:15.3]} 33. Qc5 {[%clk 0:00:13.5]}
33... Rhe8 {[%clk 0:00:14.5]} 34. Nd2 {[%clk 0:00:11.6]} 34... Nxe3+ {[%clk
0:00:14.4]} 35. Rxe3 {[%clk 0:00:07.4]} 35... Rxe3 {[%clk 0:00:15.3]} 36. Qxc6
{[%clk 0:00:06.2]} 36... Nxf4+ {[%clk 0:00:15.3]} 37. Kf2 {[%clk 0:00:05.8]}
37... Re2+ {[%clk 0:00:14]} 38. Kg1 {[%clk 0:00:04.7]} 38... Qh3 {[%clk
0:00:07.8]} 39. Qc7+ {[%clk 0:00:03.2]} 39... R8e7 {[%clk 0:00:08.3]} 40. Qxf4
{[%clk 0:00:03]} 40... Qg2# {[%clk 0:00:08.5]} 0-1

[Event "Early-Titled-Tuesday-Blitz-June-18-2024"]
[Site "Chess.com"]
[Date "2024.06.18"]
[Round "2"]
[White "Rile-Man"]
[Black "sirinbaba33"]
[Result "1-0"]
[WhiteElo "2500"]
[BlackElo "2218"]
[TimeControl "180+1"]
[EndTime "8:18:28 PDT"]
[Termination "Rile-Man won by resignation"]

1. d4 {[%clk 0:03:00.9]} 1... Nf6 {[%clk 0:03:00]} 2. Bf4 {[%clk 0:03:00.9]}
2... d6 {[%clk 0:02:59.7]} 3. Nc3 {[%clk 0:03:00.9]} 3... Nbd7 {[%clk
0:02:58.9]} 4. Nf3 {[%clk 0:03:00.7]} 4... c5 {[%clk 0:02:53.8]} 5. d5 {[%clk
0:02:57.8]} 5... b5 {[%clk 0:02:51.2]} 6. Nxb5 {[%clk 0:02:50.4]} 6... Qa5+
{[%clk 0:02:51.1]} 7. Nc3 {[%clk 0:02:49.4]} 7... Bb7 {[%clk 0:02:51]} 8. Qd2
{[%clk 0:02:45.4]} 8... g6 {[%clk 0:02:38.9]} 9. e4 {[%clk 0:02:44.5]} 9... Bg7
{[%clk 0:02:38.6]} 10. Be2 {[%clk 0:02:34]} 10... O-O {[%clk 0:02:29.3]} 11. O-O
{[%clk 0:02:28.2]} 11... Ng4 {[%clk 0:02:23.7]} 12. h3 {[%clk 0:02:23.3]} 12...
Bxc3 {[%clk 0:02:16.4]} 13. Qxc3 {[%clk 0:02:20.1]} 13... Qxc3 {[%clk
0:02:16.1]} 14. bxc3 {[%clk 0:02:21]} 14... Ngf6 {[%clk 0:02:16.8]} 15. Nd2
{[%clk 0:02:20.3]} 15... Rfe8 {[%clk 0:02:09.7]} 16. Rab1 {[%clk 0:02:20.3]}
16... Rab8 {[%clk 0:02:08.7]} 17. Rb3 {[%clk 0:02:17.2]} 17... c4 {[%clk
0:02:01.5]} 18. Rb4 {[%clk 0:01:52.2]} 18... a5 {[%clk 0:01:56.1]} 19. Rb5
{[%clk 0:01:52.2]} 19... Ba6 {[%clk 0:01:45.5]} 20. Rxa5 {[%clk 0:01:51.6]}
20... Nc5 {[%clk 0:01:26.7]} 21. f3 {[%clk 0:01:48.4]} 21... Rb2 {[%clk
0:01:23.9]} 22. Rc1 {[%clk 0:01:39.7]} 22... Nfd7 {[%clk 0:01:18]} 23. Bxc4
{[%clk 0:01:36.3]} 23... Bxc4 {[%clk 0:00:50.5]} 24. Nxc4 {[%clk 0:01:37.2]}
24... Rb7 {[%clk 0:00:50.3]} 25. e5 {[%clk 0:01:30.6]} 25... dxe5 {[%clk
0:00:36.3]} 26. Nxe5 {[%clk 0:01:31.5]} 26... Rc8 {[%clk 0:00:31.6]} 27. Nc6
{[%clk 0:01:24]} 27... Kf8 {[%clk 0:00:29.6]} 28. Re1 {[%clk 0:01:15.5]} 28...
e6 {[%clk 0:00:20]} 29. Bd6+ {[%clk 0:01:15.1]} 29... Kg7 {[%clk 0:00:17.7]} 30.
Bxc5 {[%clk 0:01:11.6]} 30... Nxc5 {[%clk 0:00:17.3]} 31. Rxc5 {[%clk
0:01:12.2]} 31... exd5 {[%clk 0:00:18.2]} 32. Na5 {[%clk 0:01:06.3]} 32... Rxc5
{[%clk 0:00:16.9]} 33. Nxb7 {[%clk 0:01:06.5]} 33... Rxc3 {[%clk 0:00:17.8]} 34.
Rd1 {[%clk 0:01:04.7]} 34... Rxc2 {[%clk 0:00:18]} 35. Rxd5 {[%clk 0:01:04.3]}
35... Rxa2 {[%clk 0:00:17.9]} 36. Nd6 {[%clk 0:01:03.9]} 36... Ra7 {[%clk
0:00:17.7]} 37. Ne8+ {[%clk 0:01:01.7]} 37... Kf8 {[%clk 0:00:16.7]} 38. Nf6
{[%clk 0:01:02.6]} 38... Kg7 {[%clk 0:00:17.2]} 39. Ne4 {[%clk 0:01:02.4]} 39...
Rb7 {[%clk 0:00:16.8]} 40. Kh2 {[%clk 0:01:01]} 40... h5 {[%clk 0:00:16.5]} 41.
h4 {[%clk 0:01:01.2]} 41... Ra7 {[%clk 0:00:16.3]} 42. Ng5 {[%clk 0:01:00.9]}
42... Re7 {[%clk 0:00:16]} 43. Kg3 {[%clk 0:01:00.6]} 43... Rb7 {[%clk 0:00:16]}
44. Ne4 {[%clk 0:01:00.9]} 44... Re7 {[%clk 0:00:16.1]} 45. Nc5 {[%clk
0:01:01.5]} 45... Ra7 {[%clk 0:00:16]} 46. Rd7 {[%clk 0:01:01.6]} 46... Ra5
{[%clk 0:00:14.3]} 47. Ne6+ {[%clk 0:01:01.2]} 47... Kg8 {[%clk 0:00:12.5]} 48.
Ng5 {[%clk 0:01:00.8]} 48... Rf5 {[%clk 0:00:13]} 49. f4 {[%clk 0:00:59.4]}
49... Rf6 {[%clk 0:00:12.9]} 50. Kf3 {[%clk 0:00:59.2]} 50... Rf5 {[%clk
0:00:13.5]} 51. Ke4 {[%clk 0:00:59]} 51... Rf6 {[%clk 0:00:13.8]} 52. Re7 {[%clk
0:00:56.1]} 52... Rf5 {[%clk 0:00:13.6]} 53. Ra7 {[%clk 0:00:51.6]} 53... Rf6
{[%clk 0:00:13.2]} 54. Kf3 {[%clk 0:00:52.2]} 54... Rf5 {[%clk 0:00:13.3]} 55.
g4 {[%clk 0:00:52.7]} 55... hxg4+ {[%clk 0:00:13.1]} 56. Kxg4 {[%clk 0:00:53.6]}
56... Rf6 {[%clk 0:00:13.2]} 57. Rb7 {[%clk 0:00:54.1]} 57... Rf5 {[%clk
0:00:13.3]} 58. h5 {[%clk 0:00:54.4]} 58... Rf6 {[%clk 0:00:07.1]} 59. h6 {[%clk
0:00:54.6]} 1-0